{"text_format":"1","workbook":"xlsx","n_sheets":3,"sheets":["REZ","DATA","Sheet3"],"not_rendered":{"charts":0,"images":0,"macros":1,"external_links":0,"defined_names":0,"comments":0,"pivot_tables":0},"unopened":[],"bounds":{"document_bytes":16777216,"sheet_cells":100000,"rows_first":2000,"rows_last":500,"rows_between":2000,"halvings":0,"cell_chars":16384,"cell_head_chars":4096},"cells_cut":0,"cells_raw":0,"read":"whole","date_system":"1900"}

{"sheet":"REZ","index":0,"n_rows":27,"n_cols":10,"rows_kept":27,"cut":false,"hidden":false,"merged":[]}
[]
[null,null,null,null,"Booking Hotels"]
[null,null,null,null,"Res. No.I"]
[]
[null,null,null,null,null,null,"Customer and Res. period"]
[null,"Res. No.",122512,null,null,null,"From dt."]
[null,"Customer'","xyz",null,null,null,"To dt."]
[null,"Status",null,null,null,null,"nights"]
[]
[]
[]
[null,"madinah"]
[null,"hotel name","Room type","N.OF Rooms","price","Persone","from Dt","To date","nights","Amount"]
[null,"هيلتون مدينة"," Singel",1,350,2,"2019-02-01","2019-02-03",{"$f":"H14-G14","v":2},{"$f":"I14*E14*D14","v":700}]
[null,"دار الإيمان Int"," Dupel",2,450,3,"2019-02-01","2019-02-03",{"$f":"H15-G15","v":2},{"$f":"I15*E15*D15","v":1800}]
[null,null,null,null,null,null,null,null,{"$f":"H16-G16","v":0},{"$f":"I16*E16*D16","v":0}]
[null,null,null,null,null,null,null,null,0,0]
[null,null,null,null,null,null,null,null,0,0]
[null,null,null,null,null,null,null,null,null,{"$f":"SUM(J14:J18)","v":2500}]
[null,"makkah"]
[null,"hotel name","Room type","N.OF Rooms","price","Persone","from Dt","To date","nights","Amount"]
[null,"hotel1"," Singel",1,350,2,"2019-02-03","2019-02-04",{"$f":"H22-G22","v":1},{"$f":"I22*E22*D22","v":350}]
[null,"hotel 2"," Dupel",2,450,3,"2019-02-03","2019-02-04",{"$f":"H23-G23","v":1},900]
[null,null,null,null,null,null,null,null,{"$f":"H24-G24","v":0},0]
[null,null,null,null,null,null,null,null,0,0]
[null,null,null,null,null,null,null,null,0,0]
[null,null,null,null,null,null,null,null,null,{"$f":"SUM(J22:J26)","v":1250}]

{"sheet":"DATA","index":1,"n_rows":10,"n_cols":12,"rows_kept":10,"cut":false,"hidden":false,"merged":[]}
[]
[]
[]
[]
[]
[null,"Res. No.","Customer'","hotel name","Room type","N.Of Rooms","price","Persone","from Dt","To date","nights","Amount"]
[null,null,null,null,null,null,null,null,null,null,{"$f":"J7-I7","v":0},{"$f":"K7*G7*F7","v":0}]
[null,null,null,null,null,null,null,null,null,null,{"$f":"J8-I8","v":0},{"$f":"K8*G8*F8","v":0}]
[null,null,null,null,null,null,null,null,null,null,0,0]
[null,null,null,null,null,null,null,null,null,null,0,0]

{"sheet":"Sheet3","index":2,"n_rows":0,"n_cols":0,"rows_kept":0,"cut":false,"hidden":false,"merged":[]}